lending/lending_fUSD_20251020
["ID","MTS","AMOUNT","RATE_DAILY","PERIOD"]
[391856555,1760922342584,-69.58344729,0.00013385,2]
[391856556,1760922342606,-152.9,0.00013385,2]
[391856557,1760922342628,-150.0,0.00013488,2]
[391856558,1760922342661,-150.0,0.00013488,2]
[391856559,1760922342684,-150.0,0.00013488,2]
[391856560,1760922342707,-150.0,0.00013488,2]
[391856561,1760922342731,-150.0,0.00013488,2]
[391856562,1760922342754,-150.0,0.00013488,2]
[391856563,1760922342775,-205.05633629,0.00013488,2]
[391856564,1760922342796,-150.0,0.00013488,2]
[391856565,1760922342818,-150.0,0.00013488,2]
[391856566,1760922342840,-150.0,0.00013488,2]
[391856567,1760922342860,-150.0,0.00013488,2]
[391856568,1760922342883,-150.00000001,0.00013488,2]
[391856569,1760922342905,-157.1395051,0.00013662,2]
[391856570,1760922342927,-165.32071131,0.00013699,2]
[391856571,1760922345401,-164.08928869,0.00013699,2]
[391856572,1760922345431,-62.91779267,0.00014023,2]
[391856575,1760922530595,11000.0,0.00034327,120]
[391856581,1760922632232,-334.468036,0.00013952,2]
[391856582,1760922632241,-89.98220733,0.00014023,2]
[391856583,1760922632251,-2751.0,0.00014272,2]
[391856584,1760922632261,-2686.78,0.00014403,2]
[391856585,1760922632270,-845.39238066,0.00014597,2]
[391856586,1760922632279,-1200.0,0.00014659,2]
[391856587,1760922632289,-152.9,0.0001466,2]
[391856588,1760922632299,-179.0,0.00014722,2]
[391856589,1760922632309,-2500.0,0.00014723,2]
[391856590,1760922632319,-300.0,0.00014723,2]
[391856591,1760922632328,-300.0,0.00014723,2]
[391856592,1760922632339,-455.91129402,0.000149,2]
[391856593,1760922632350,-302.33919448,0.000149,2]
[391856594,1760922632361,-201.83481204,0.000149,2]
[391856595,1760922632371,-164.77016483,0.000149,2]
[391856596,1760922632382,-500.0,0.00014973,2]
[391856597,1760922632392,-500.0,0.00014973,2]
[391856598,1760922632401,-500.0,0.00014973,2]
[391856599,1760922632411,-500.0,0.00014973,2]
[391856600,1760922632420,-192.58382691,0.00014973,2]
[391856601,1760922632429,-151.0,0.00014997,2]
[391856602,1760922632441,-372.79494855,0.00014999,2]
[391856603,1760922632450,-155.0,0.00014999,2]
[391856604,1760922632460,-564.0,0.00014999,2]
[391856605,1760922632471,-150.0,0.00014999,2]
[391856606,1760922632481,-156293.17787091,0.00015,2]
[391856607,1760922632494,-3651.27034911,0.00015,2]
[391856608,1760922632512,-35076.35460082,0.00015,2]
[391856620,1760922638341,-934.9,0.00015,2]
[391856631,1760922640214,-1156.68564628,0.00015,2]
[391856632,1760922640323,-541.95,0.00015,2]
[391856647,1760922640692,-1.6e-07,0.00015,2]
[391856649,1760922640703,-4900454.13978335,0.00015,2]
[391856651,1760922640713,-1917156.12171585,0.00015,2]
[391856654,1760922640723,-357.28615974,0.00015,2]
[391856703,1760922643374,-582.37999,0.00015,2]
[391856704,1760922643431,-31718.82111476,0.00015,2]
[391856727,1760922646305,-9735.66047447,0.00015,2]
[391856728,1760922646316,-1524.44481972,0.00015,2]
[391856742,1760923392680,-166.66,0.00013699,2]
[391856743,1760923392707,-28.3586893,0.00013979,2]
[391856744,1760923439455,1983.0,0.0003433,120]
[391856745,1760923453354,-138.3013107,0.00013979,2]
[391856746,1760923453377,-14.9986893,0.00014119,2]
[391856747,1760923482690,-235.0013107,0.00014119,2]
[391856748,1760923482720,-64.9986893,0.00014145,2]
[391856749,1760923486767,-173.43176091,0.00014145,2]
[391856750,1760923491118,-350.85194784,0.00014145,2]
[391856751,1760923492874,-174.86823909,0.00014145,2]
[391856752,1760923496081,-250.0,0.00014145,2]
[391856790,1760923831492,-173.34936286,0.00014145,2]
[391856791,1760923831502,-166.66,0.0001426,2]
[391856792,1760923831513,-300.0,0.00014372,2]
[391856793,1760923831523,-300.0,0.00014372,2]
[391856794,1760923831533,-1200.0,0.00014372,2]
[391856795,1760923831542,-150.0,0.00014372,2]
[391856796,1760923831552,-500.0,0.00014373,2]
[391856797,1760923831562,-500.0,0.00014373,2]
[391856798,1760923831571,-500.0,0.00014373,2]
[391856799,1760923831581,-500.0,0.00014373,2]
[391856800,1760923831591,-500.0,0.00014373,2]
[391856801,1760923831601,-500.0,0.00014373,2]
[391856802,1760923831611,-500.0,0.00014373,2]
[391856803,1760923831620,-500.0,0.00014373,2]
[391856804,1760923831630,-500.0,0.00014373,2]
[391856805,1760923831640,-500.0,0.00014373,2]
[391856806,1760923831649,-500.0,0.00014373,2]
[391856807,1760923831659,-298.28525644,0.00014373,2]
[391856808,1760923831668,-20021.57568584,0.00014374,2]
[391856809,1760923831680,-35186.36316406,0.00014374,2]
[391856810,1760923831696,-9507.28372119,0.00014374,2]
[391856811,1760923831705,-500.0,0.0001442,2]
[391856812,1760923831715,-166.66,0.0001454,2]
[391856813,1760923831725,-433.0,0.00014578,2]
[391856814,1760923831735,-1747.18584549,0.00014765,2]
[391856815,1760923831745,-166.66,0.00014821,2]
[391856816,1760923831754,-200.0,0.00014857,2]
[391856817,1760923831764,-168.22521999,0.00014899,2]
[391856818,1760923831774,-164.77016483,0.00014899,2]
[391856819,1760923831784,-390.78110916,0.000149,2]
[391856820,1760923831794,-1179.98689609,0.000149,2]
[391856821,1760923831804,-29089.293637,0.000149,2]
[391856822,1760923831813,-201.55946298,0.000149,2]
[391856823,1760923831823,-1179.98689608,0.00014911,2]
[391856824,1760923831832,-1179.98689608,0.00014922,2]
[391856826,1760923831842,-1179.98689608,0.00014934,2]
[391856827,1760923831851,-1179.98689608,0.00014945,2]
[391856829,1760923831860,-193.68,0.0001495,2]
[391856831,1760923831870,-1179.98689608,0.00014956,2]
[391856835,1760923831884,-1179.98689608,0.00014967,2]
[391856837,1760923831893,-500.0,0.00014973,2]
[391856839,1760923831903,-500.0,0.00014973,2]
[391856841,1760923831913,-506.79242823,0.00014973,2]
[391856844,1760923831923,-1179.98689608,0.00014979,2]
[391856847,1760923831932,-1179.98689608,0.0001499,2]
[391856850,1760923831942,-164.77016483,0.00014991,2]
[391856853,1760923831952,-203.38446236,0.00014991,2]
[391856856,1760923831961,-177.80508808,0.00014991,2]
[391856858,1760923831971,-200.0,0.00014991,2]
[391856860,1760923831980,-203.99367466,0.00014998,2]
[391856862,1760923831989,-348.85331699,0.00014998,2]
[391856864,1760923831999,-279.84871082,0.00014998,2]
[391856866,1760923832008,-240.90779612,0.00014998,2]
[391856868,1760923832018,-500.0,0.00014998,2]
[391856870,1760923832028,-168.63545728,0.00014998,2]
[391856872,1760923832037,-418.78953978,0.00014998,2]
[391856874,1760923832046,-500.0,0.00014999,2]
[391856876,1760923832056,-500.0,0.00014999,2]
[391856878,1760923832067,-500.0,0.00014999,2]
[391856880,1760923832077,-500.0,0.00014999,2]
[391856882,1760923832086,-202.09219327,0.00014999,2]
[391856884,1760923832096,-500.0,0.00014999,2]
[391856886,1760923832105,-500.0,0.00014999,2]
[391856888,1760923832119,-451.2,0.00014999,2]
[391856890,1760923832128,-500.0,0.00014999,2]
[391856892,1760923832137,-1326.22,0.00014999,2]
[391856894,1760923832147,-470722.5236702,0.00014999,2]
[391856897,1760923832158,-500.0,0.00014999,2]
[391856899,1760923832167,-150.0,0.00014999,2]
[391856901,1760923832176,-500.0,0.00014999,2]
[391856903,1760923832185,-500.0,0.00014999,2]
[391856904,1760923832195,-500.0,0.00014999,2]
[391856905,1760923832205,-150.0,0.00014999,2]
[391856906,1760923832216,-500.0,0.00014999,2]
[391856907,1760923832226,-500.0,0.00014999,2]
[391856908,1760923832236,-500.0,0.00014999,2]
[391856909,1760923832246,-500.0,0.00014999,2]
[391856910,1760923832256,-150.0,0.00014999,2]
[391856911,1760923832266,-500.0,0.00014999,2]
[391856912,1760923832278,-150.0,0.00014999,2]
[391856913,1760923832287,-150.0,0.00014999,2]
[391856914,1760923832297,-150.0,0.00014999,2]
[391856915,1760923832307,-500.0,0.00014999,2]
[391856916,1760923832318,-500.0,0.00014999,2]
[391856917,1760923832329,-268598.50028622,0.00015,2]
[391856918,1760923832342,-2210.22724795,0.00015,2]
[391857002,1760923839600,-150.23697674,0.000149,2]
[391857003,1760923839610,-138794.50482084,0.00015,2]
[391857004,1760923839723,-1451.40426116,0.00015,2]
[391857005,1760923839735,-1877.40242798,0.00015,2]
[391857006,1760923839836,-193527.00881999,0.00015,2]
[391857007,1760923839847,-2646.28396406,0.00015,2]
[391857008,1760923839856,-5036367.36213793,0.00015,2]
[391857009,1760923839865,-745.0,0.00015,2]
[391857010,1760923839875,-660.0,0.00015,2]
[391857011,1760923839884,-1583664.60657722,0.00015,2]
[391857026,1760923842500,-432.7983458,0.00014597,3]
[391857027,1760923845790,-233.2016542,0.00014597,3]
[391857028,1760923845802,-10701.4141759,0.00015,2]
[391857029,1760923845901,-454.05499975,0.00015,2]
[391857030,1760923845915,-6370.97612013,0.00015,2]
[391857032,1760923933352,314.0,0.0003433,120]
[391857039,1760924232767,-449.81041395,0.00013982,2]
[391857040,1760924238123,-181.53607269,0.00013982,2]
[391857044,1760924322648,-500.0,0.00013846,2]
[391857048,1760924324835,-224.77044198,0.00013846,2]
[391857049,1760924379054,5943.96,0.00034343,120]
[391857050,1760924381652,279.52489315,0.00034343,120]
[391857051,1760924394319,1972.3073556,0.00034343,35]
[391857052,1760924532686,-70.17955802,0.00013846,2]
[391857053,1760924532707,-282.45337679,0.00013914,2]
[391857054,1760924535493,-191.09251924,0.00013914,2]
[391857058,1760924538952,-284.66289255,0.00013914,2]
[391857059,1760924541629,-205.48798767,0.00013914,2]
[391857060,1760924543670,-158.20263632,0.00013914,2]
[391857061,1760924546038,-195.0,0.00013914,2]
[391857062,1760924549122,-193.49040346,0.00013914,2]
[391857063,1760924552517,-427.4339201,0.00013914,2]
[391857064,1760924554275,-208.91527485,0.00013914,2]
[391857065,1760924556929,250.0,0.00013844,7]
[391857066,1760924557162,-220.90292361,0.00013914,2]
[391857067,1760924558735,-132.35806541,0.00013914,2]
[391857068,1760924558757,-167.64193459,0.00013982,2]
[391857069,1760924592850,-250.0,0.00013844,2]
[391857070,1760924592875,-167.85459193,0.00013844,2]
[391857071,1760924595856,-183.71229,0.00013844,2]
[391857072,1760924599518,-193.75332263,0.00013844,2]
[391857073,1760924601599,-233.95889206,0.00013844,2]
[391857074,1760924603958,-92.96090338,0.00013844,2]
[391857075,1760924603981,-291.58331241,0.00013875,2]
[391857076,1760924605305,-8.41668759,0.00013875,2]
[391857077,1760924605328,-283.6591089,0.00013905,2]
[391857078,1760924607004,-211.95548303,0.00013905,2]
[391857079,1760924614503,-200.0,0.00013869,2]
[391857080,1760924614524,-100.0,0.0001387,2]
[391857081,1760924615878,-100.0,0.0001387,2]
[391857082,1760924615901,-200.0,0.0001387,2]
[391857083,1760924615924,-170.77551274,0.00013905,2]
[391857087,1760924620274,-211.98818924,0.00013905,2]
[391857088,1760924629985,2004.21,0.00034343,120]
[391857089,1760924652714,-200.01629112,0.00013842,2]
[391857090,1760924654388,-195.0,0.00013842,2]
[391857091,1760924656009,-220.15177752,0.00013842,2]
[391857092,1760924657818,-190.21738323,0.00013842,2]
[391857093,1760924663156,-242.21084912,0.00013842,2]
[391857094,1760924665857,-320.25059967,0.00013842,2]
[391857095,1760924682668,-466.71225762,0.00013842,2]
[391857096,1760924686873,-187.83020545,0.00013842,2]
[391857097,1760924688963,-257.52502837,0.00013842,2]
[391857098,1760924692149,-442.58636448,0.00013842,2]
[391857099,1760924727622,-500.0,0.00013708,2]
[391857100,1760924729175,-225.62852009,0.00013708,2]
[391857101,1760924731302,-180.92839003,0.00013708,2]
[391857102,1760924733897,-234.99142358,0.00013708,2]
[391857103,1760924736751,-270.82392731,0.00013708,2]
[391857104,1760924740706,-308.84395509,0.00013708,2]
[391857105,1760924742240,-162.20630905,0.00013708,2]
[391857106,1760924745623,-258.24329628,0.00013708,2]
[391857107,1760924748421,-272.55,0.00013708,2]
[391857108,1760924752473,-165.77664263,0.00013708,2]
[391857109,1760924754220,-320.77865192,0.00013708,2]
[391857110,1760924758316,-224.44009699,0.00013708,2]
[391857111,1760924761191,-410.40677693,0.00013708,2]
[391857112,1760924763895,-300.0,0.00013707,2]
[391857113,1760924763918,-19.90661146,0.00013708,2]
[391857114,1760924765582,-482.86536425,0.00013708,2]
[391857115,1760924767227,-373.32591773,0.00013708,2]
[391857116,1760924768794,-608.14338052,0.00013708,2]
[391857117,1760924771628,-301.67714213,0.00013708,2]
[391857122,1760924787610,-254.29827041,0.00013708,2]
[391857123,1760924789927,-218.51371194,0.00013708,2]
[391857124,1760924792796,-250.0,0.00013707,2]
[391857125,1760924796198,-152.75,0.00013707,2]
[391857126,1760924798298,-97.25,0.00013707,2]
[391857127,1760924798323,-125.40064152,0.00013707,2]
[391857128,1760924798562,262.05667053,0.00034345,30]
[391857129,1760924802092,-182.35446581,0.00013707,2]
[391857130,1760924806592,-173.87075851,0.00013707,2]
[391857131,1760924808345,-18.37413416,0.00013707,2]
[391857132,1760924808369,-227.35465689,0.00013707,2]
[391857133,1760924808391,-168.55973515,0.00013708,2]
[391857134,1760924811896,-265.50166498,0.00013708,2]
[391857135,1760924814633,-211.23171946,0.00013708,2]
[391857136,1760924816863,-250.0,0.00013708,2]
[391857138,1760924832701,-233.00344987,0.00013708,2]
[391857139,1760924835296,-197.12372833,0.00013708,2]
[391857140,1760924838273,-281.8224263,0.00013708,2]
[391857141,1760924839924,-219.30693218,0.00013708,2]
[391857142,1760924841472,-304.43393434,0.00013708,2]
[391857143,1760924843212,-318.89598305,0.00013708,2]
[391857144,1760924845887,-1134.28260132,0.00013708,2]
[391857145,1760924862686,-466.89912202,0.00013708,2]
[391857146,1760924866584,-442.06633041,0.00013708,2]
[391857147,1760924868733,-289.73762311,0.00013708,2]
[391857148,1760924870990,-434.50605857,0.00013708,2]
[391857149,1760924873244,-268.35715914,0.00013708,2]
[391857150,1760924875482,-277.77919279,0.00013708,2]
[391857152,1760924893922,-172.45,0.00013635,2]
[391857153,1760924897375,-4.6346964,0.00013635,2]
[391857154,1760924897397,-150.0,0.00013707,2]
[391857155,1760924897418,-43.21654723,0.00013708,2]
[391857158,1760924899330,-265.68752685,0.00013708,2]
[391857159,1760924900857,-280.51535638,0.00013708,2]
[391857160,1760924902446,-357.41725042,0.00013708,2]
[391857161,1760924905163,-161.20902467,0.00013699,2]
[391857162,1760924922770,-206.12852006,0.00013699,2]
[391857163,1760924925088,-11.18245527,0.00013699,2]
[391857164,1760924925112,-228.78488429,0.00013708,2]
[391857165,1760924927596,-168.58978569,0.00013708,2]
[391857166,1760924929621,-218.61143519,0.00013708,2]
[391857167,1760924932593,-228.36034156,0.00013708,2]
[391857168,1760924935417,-162.91502464,0.00013708,2]
[391857169,1760924938238,-360.86301236,0.00013708,2]
[391857170,1760924940249,-432.18480056,0.00013708,2]
[391857171,1760924942401,-357.83888165,0.00013708,2]
[391857172,1760924945658,-300.0,0.00013708,2]
[391857173,1760924948731,-250.0,0.00013708,2]
[391857174,1760924950413,-199.83052958,0.00013708,2]
[391857175,1760924951967,-296.5598521,0.00013708,2]
[391857176,1760924956873,-154.15071383,0.00013708,2]
[391857177,1760924958320,-549.45890449,0.00013708,2]
[391857178,1760924961114,-240.0,0.00013708,2]
[391857179,1760924965112,-271.02027824,0.00013708,2]
[391857180,1760924967365,-204.95313952,0.00013708,2]
[391857181,1760924971757,-250.0,0.00013708,2]
[391857182,1760924973224,-347.31861138,0.00013708,2]
[391857183,1760924976506,-179.50218907,0.00013708,2]
[391857184,1760924979326,-483.28462231,0.00013708,2]
[391857185,1760924981328,-410.09671403,0.00013708,2]
[391857186,1760924997675,-154.25091183,0.00013708,2]
[391857187,1760925001859,-300.0,0.00013707,2]
[391857188,1760925001882,-220.94830104,0.00013707,2]
[391857189,1760925004511,-465.31604071,0.00013707,2]
[391857190,1760925007825,-188.40903968,0.00013707,2]
[391857191,1760925009907,-325.32661857,0.00013707,2]
[391857192,1760925009929,-294.88504383,0.00013707,2]
[391857193,1760925012081,-5.11495617,0.00013707,2]
[391857194,1760925012105,-195.0,0.00013707,2]
[391857195,1760925012127,-179.26242152,0.00013708,2]
[391857196,1760925015344,-298.722708,0.00013708,2]
[391857197,1760925017591,-373.86,0.00013708,2]
[391857198,1760925020251,-256.64086945,0.00013708,2]
[391857199,1760925022460,-202.93674772,0.00013708,2]
[391857200,1760925023994,-438.74395192,0.00013708,2]
[391857207,1760925031564,-304.787359,0.00013639,2]
[391857208,1760925031577,-48247.29593883,0.00013708,2]
[391857209,1760925031587,-2500.0,0.00013714,2]
[391857210,1760925031596,-2500.0,0.00013721,2]
[391857211,1760925031605,-2532.91670218,0.00013735,2]
[391857212,1760925031620,-1005.70379032,0.00013735,2]
[391857213,1760925031630,-181.33613616,0.00013776,2]
[391857214,1760925031639,-28.49924342,0.00013842,2]
[391857215,1760925031649,-77.38157877,0.00013982,2]
[391857216,1760925031658,-380.0364316,0.00014041,2]
[391857217,1760925031668,-166.66,0.00014077,2]
[391857218,1760925031677,-500.0,0.00014218,2]
[391857219,1760925031686,-1471.0,0.00014317,2]
[391857220,1760925031695,-1471.0,0.00014349,2]
[391857221,1760925031705,-1662.0,0.00014355,2]
[391857222,1760925031714,-1471.0,0.00014366,2]
[391857223,1760925031723,-166.66,0.00014542,2]
[391857224,1760925031733,-231.00413793,0.00014574,2]
[391857225,1760925031744,-1227.99586207,0.00014574,2]
[391857226,1760925031753,-1471.0,0.00014656,2]
[391857227,1760925031763,-155.44,0.00014709,2]
[391857228,1760925031772,-1471.0,0.00014803,2]
[391857229,1760925031781,-1662.0,0.00014811,2]
[391857230,1760925031790,-255.0,0.00014817,2]
[391857231,1760925031800,-179.64916575,0.00014834,2]
[391857232,1760925031809,-151.0,0.00014834,2]
[391857233,1760925031819,-151.0,0.00014834,2]
[391857234,1760925031828,-151.0,0.00014834,2]
[391857237,1760925031838,-151.0,0.00014834,2]
[391857239,1760925031858,-151.0,0.00014834,2]
[391857241,1760925031868,-151.0,0.00014834,2]
[391857243,1760925031878,-151.0,0.00014834,2]
[391857245,1760925031887,-151.0,0.00014834,2]
[391857247,1760925031899,-151.0,0.00014834,2]
[391857249,1760925031908,-151.0,0.00014834,2]
[391857251,1760925031917,-151.0,0.00014834,2]
[391857253,1760925031926,-151.0,0.00014834,2]
[391857255,1760925031936,-151.0,0.00014834,2]
[391857257,1760925031945,-151.0,0.00014834,2]
[391857259,1760925031955,-1000.0,0.00014834,2]
[391857261,1760925031964,-1000.0,0.00014834,2]
[391857263,1760925031974,-151.0,0.00014834,2]
[391857265,1760925031983,-1000.0,0.00014834,2]
[391857267,1760925031992,-151.0,0.00014834,2]
[391857269,1760925032001,-1000.0,0.00014834,2]
[391857271,1760925032011,-73.73408001,0.00014834,2]
[391857273,1760925032023,-926.26591999,0.00014834,2]
[391857275,1760925032033,-167.21191613,0.00014834,2]
[391857277,1760925032043,-1000.0,0.00014834,2]
[391857279,1760925032052,-1000.0,0.00014834,2]
[391857281,1760925032062,-1000.0,0.00014834,2]
[391857283,1760925032071,-437.13034347,0.00014834,2]
[391857285,1760925032082,-562.86965653,0.00014834,2]
[391857287,1760925032092,-173.61728982,0.00014834,2]
[391857290,1760925032111,-826.38271018,0.00014834,2]
[391857292,1760925032121,-1000.0,0.00014834,2]
[391857294,1760925032130,-902.05274035,0.00014844,2]
[391857329,1760925037604,-568.94725965,0.00014844,2]
[391857330,1760925037615,-414.70050932,0.00014847,2]
[391857367,1760925038207,-194.12062892,0.00014847,2]
[391857497,1760925039510,-862.17886176,0.00014847,2]
[391857498,1760925039520,-1471.0,0.00014895,2]
[391857500,1760925039529,-336.80483431,0.000149,2]
[391857502,1760925039538,-183.01826507,0.000149,2]
[391857504,1760925039548,-170.76643403,0.000149,2]
[391857506,1760925039557,-169.58307784,0.000149,2]
[391857508,1760925039566,-590.82911582,0.00014963,2]
[391857511,1760925039590,-880.17088418,0.00014963,2]
[391857513,1760925039600,-159.93258,0.0001497,2]
[391857515,1760925039609,-259.64531079,0.00014973,2]
[391857517,1760925039621,-500.0,0.00014973,2]
[391857519,1760925039631,-446.52410284,0.00014973,2]
[391857633,1760925040920,-1.6e-07,0.00014973,2]
[391857634,1760925040932,-53.475897,0.00014973,2]
[391857636,1760925040941,-503.64435126,0.00014973,2]
[391857638,1760925040951,-500.0,0.00014973,2]
[391857639,1760925040960,-500.97288801,0.00014973,2]
[391857641,1760925040969,-500.0,0.00014973,2]
[391857643,1760925040979,-502.11857811,0.00014973,2]
[391857644,1760925040988,-515.33110889,0.00014973,2]
[391857646,1760925040997,-500.0,0.00014973,2]
[391857648,1760925041006,-500.0,0.00014973,2]
[391857649,1760925041015,-502.34693502,0.00014973,2]
[391857651,1760925041025,-500.0,0.00014973,2]
[391857652,1760925041035,-500.0,0.00014973,2]
[391857654,1760925041044,-1660.39,0.00014991,2]
[391857656,1760925041053,-500.0,0.00014998,2]
[391857657,1760925041063,-486.39813315,0.00014998,2]
[391857659,1760925041072,-463.26662991,0.00014999,2]
[391857661,1760925041083,-598.44128882,0.00014999,2]
[391857662,1760925041092,-196.91614726,0.00014999,2]
[391857664,1760925041102,-150.0,0.00014999,2]
[391857666,1760925041112,-150.0,0.00014999,2]
[391857667,1760925041123,-200.0,0.00014999,2]
[391857669,1760925041133,-500.0,0.00014999,2]
[391857671,1760925041142,-500.0,0.00014999,2]
[391857672,1760925041151,-500.0,0.00014999,2]
[391857674,1760925041160,-150.0,0.00014999,2]
[391857676,1760925041169,-500.0,0.00014999,2]
[391857677,1760925041178,-174.41632804,0.00014999,2]
[391857679,1760925041188,-150.0,0.00014999,2]
[391857681,1760925041198,-150.0,0.00014999,2]
[391857683,1760925041216,-150.0,0.00014999,2]
[391857685,1760925041226,-500.0,0.00014999,2]
[391857686,1760925041236,-558.0,0.00014999,2]
[391857688,1760925041246,-155.02558532,0.00014999,2]
[391857690,1760925041256,-150.0,0.00014999,2]
[391857691,1760925041266,-257.95611022,0.00014999,2]
[391857693,1760925041276,-208.7829731,0.00014999,2]
[391857694,1760925041286,-500.0,0.00014999,2]
[391857695,1760925041295,-748.0,0.00014999,2]
[391857696,1760925041304,-661.0,0.00014999,2]
[391857697,1760925041314,-848.0,0.00015,2]
[391857698,1760925041323,-1567725.12362311,0.00015,2]
[391857699,1760925041336,-30206.51411855,0.00015,2]
[391857700,1760925041348,-3308.10160664,0.00015,2]
[391857701,1760925041363,-2961.94826072,0.00015,2]
[391857723,1760925041558,-2991.40941295,0.00015,2]
[391857725,1760925041578,-224849.33792756,0.00015,2]
[391857730,1760925045839,-453.92000025,0.00014549,2]
[391857731,1760925045892,-416.13915925,0.00014549,2]
[391857732,1760925102696,-159.37659103,0.00013707,2]
[391857733,1760925104903,-225.91537771,0.00013707,2]
[391857734,1760925123644,391.86998696,0.00034345,120]
[391857746,1760925361790,200.0,0.00034345,120]
[391858044,1760925836465,328.65,6.859e-05,2]
[391858045,1760925836656,328.65,7.22e-05,2]
[391858046,1760925836869,328.65,7.581e-05,2]
[391858047,1760925837144,328.65,7.942e-05,2]
[391858048,1760925837357,328.65,8.303e-05,2]
[391858049,1760925837586,328.65,8.664e-05,2]
[391858050,1760925837790,328.65,9.025e-05,2]
[391858051,1760925837991,328.65,9.386e-05,2]
[391858052,1760925838281,328.65,9.747e-05,2]
[391858053,1760925838485,328.65,0.00010108,2]
[391858054,1760925838690,328.65,0.00010469,2]
[391858055,1760925838892,328.65,0.0001083,2]
[391858056,1760925839111,328.65,0.00011191,2]
[391858057,1760925839315,328.65,0.00011552,2]
[391858058,1760925839507,328.65,0.00011913,2]
[391858059,1760925839908,328.65,0.00012274,2]
[391858060,1760925840141,328.65,0.00012635,2]
[391858061,1760925840324,328.65,0.00012996,2]
[391858063,1760925841517,-246.79245446,0.00013357,2]
[391858064,1760925844390,-81.85754554,0.00013357,2]
[391858065,1760925844425,-109.28245446,0.00013718,2]
[391858066,1760925846851,-219.36754554,0.00013718,2]
[391858067,1760925846877,-192.18222267,0.00013898,2]
[391858068,1760925846900,-195.0,0.00013898,2]
[391858069,1760925846922,-369.19885163,0.00013898,2]
[391858072,1760925852402,-208.60780155,0.00013898,2]
[391858073,1760925855046,-223.88060482,0.00013898,2]
[391858074,1760925857229,-287.54617157,0.00013898,2]
[391858076,1760925860582,-250.0,0.00013898,2]
[391858077,1760925863317,-300.0,0.00013898,2]
[391858080,1760925866830,-173.12338281,0.00013898,2]
[391858081,1760925869871,-195.0,0.00013898,2]
[391858082,1760925872059,-232.67431415,0.00013898,2]
[391858088,1760925875555,-250.0,0.00013898,2]
[391858089,1760925877646,-9.96887347,0.00013898,2]
[391858090,1760925877671,-150.0,0.00013898,2]
[391858091,1760925877693,-94.86601885,0.00013907,2]
[391858092,1760925879780,-135.74154559,0.00013907,2]
[391858093,1760925879807,-300.0,0.00013912,2]
[391858094,1760925879829,-0.02151472,0.00013925,2]
[391858096,1760925884535,-194.97848528,0.00013925,2]
[391858097,1760925884556,-69.37368024,0.00013952,2]
[391858102,1760925901347,-302.49669122,0.00013952,2]
[391858103,1760925901372,-8.61067461,0.00013958,2]
[391858104,1760925903549,-250.47410012,0.00013958,2]
[391858105,1760925906374,-166.70255021,0.00013955,2]
[391858107,1760925909360,-28.29744979,0.00013955,2]
[391858108,1760925909387,-40.91522527,0.00013958,2]
[391858109,1760925909416,-83.54605979,0.00013958,2]
[391858110,1760925911064,-181.33281669,0.00013958,2]
[391858120,1760925975368,-66.92836997,0.00013958,2]
[391858121,1760925975391,-198.60548087,0.00013982,2]
[391858123,1760925979238,-51.39451913,0.00013982,2]
[391858124,1760925979261,-229.30216509,0.00013982,2]
[391858125,1760925983157,-208.70089154,0.00013982,2]
[391858126,1760925985772,-310.22959107,0.00013982,2]
[391858129,1760925989496,-388.20148484,0.00013982,2]
[391858130,1760925992829,-54.83077133,0.00013982,2]
[391858131,1760925992850,-201.51742942,0.00013982,2]
[391858138,1760926035333,-200.0,0.00013935,2]
[391858139,1760926035362,-22.48930943,0.00013982,2]
[391858143,1760926059583,200.0,0.0001,2]